lending/lending_fUSD_20260104
["ID","MTS","AMOUNT","RATE_DAILY","PERIOD"]
[400446237,1767562316665,-152.59,0.00041465,120]
[400446238,1767562316694,-152.59,0.00041565,120]
[400446239,1767562316723,-153.0,0.000416,120]
[400446240,1767562316751,-600.0,0.00041644,120]
[400446241,1767562316780,-152.59,0.00041665,120]
[400446242,1767562316806,-153.0,0.000417,120]
[400446243,1767562316834,-152.65347115,0.00041765,120]
[400446244,1767562316860,-2880.79118947,0.000418,120]
[400446245,1767562316886,-502.0,0.00041807,30]
[400446246,1767562316912,-1060.8301196,0.0004182,120]
[400446247,1767562316937,-363.84704787,0.00042,120]
[400446248,1767562316964,-200.0,0.00042,120]
[400446249,1767562316990,-150.0,0.00042,120]
[400446250,1767562317020,-717.0,0.00042,60]
[400446251,1767562317047,-1586.61609709,0.00042,120]
[400446252,1767562317074,-255.84618,0.00042,37]
[400446253,1767562317103,-500.0,0.00042015,60]
[400446254,1767562317130,-500.0,0.00042015,60]
[400446255,1767562317158,-500.0,0.00042015,60]
[400446256,1767562317185,-2946.12163812,0.000421,120]
[400446257,1767562317213,-631.14,0.00042192,120]
[400446258,1767562317245,-502.0,0.00042238,30]
[400446259,1767562317271,-207.50609409,0.000423,120]
[400446260,1767562317297,-7937.93,0.000424,30]
[400446261,1767562317325,-153.0,0.000424,120]
[400446262,1767562317351,-1000.0,0.00042424,31]
[400446263,1767562317377,-200.0,0.00042466,120]
[400446264,1767562317408,-354.05309636,0.00042475,120]
[400446265,1767562317435,-254.46,0.00042483,30]
[400446266,1767562317461,-153.0,0.000425,120]
[400446267,1767562317493,-1699.82050943,0.000425,120]
[400446268,1767562317520,-259.82,0.00042504,120]
[400446269,1767562317547,-407.14,0.00042546,120]
[400446270,1767562318013,-500.0,0.00042563,60]
[400446271,1767562318042,-502.0,0.00042669,30]
[400446272,1767562318068,-2416.40796174,0.000429,120]
[400446273,1767562318093,-599.04478414,0.000429,120]
[400446274,1767562318120,-340.82720884,0.00043,120]
[400446275,1767562318145,-2655.33834193,0.00043,120]
[400446276,1767562318171,-100850.50611598,0.00043,60]
[400446277,1767562318197,-1615.44717823,0.00043,120]
[400446278,1767562318223,-5000.0,0.00043,30]
[400446279,1767562318251,-2500.0,0.00043,30]
[400446280,1767562318277,-1703.18213441,0.00043,120]
[400446281,1767562318303,-161.0,0.00043,30]
[400446282,1767562318329,-80368.36169657,0.00043,60]
[400446283,1767562318356,-2000.0,0.00043,120]
[400446284,1767562318381,-2059.1484,0.00043,120]
[400446285,1767562318412,-2000.0,0.00043,120]
[400446286,1767562318438,-2000.0,0.00043,120]
[400446287,1767562318465,-150.0,0.00043,120]
[400446288,1767562318490,-4531.22503983,0.00043,30]
[400446289,1767562318517,-1026.84411701,0.00043,120]
[400446290,1767562318544,-492.24,0.00043,120]
[400446291,1767562318571,-150.0,0.00043014,120]
[400446292,1767562318597,-150.0,0.00043014,120]
[400446293,1767562318624,-150.0,0.00043014,120]
[400446294,1767562318651,-154.27830683,0.00043014,120]
[400446295,1767562318677,-150.0,0.00043014,120]
[400446296,1767562318703,-159.99180356,0.00043014,120]
[400446297,1767562318729,-500.0,0.00043014,120]
[400446298,1767562318755,-500.0,0.00043014,120]
[400446299,1767562318781,-500.0,0.00043014,120]
[400446300,1767562318806,-500.0,0.00043014,120]
[400446301,1767562318831,-500.0,0.00043014,120]
[400446302,1767562318856,-509.00591082,0.00043014,120]
[400446303,1767562318881,-500.0,0.00043014,120]
[400446304,1767562318906,-500.0,0.00043014,120]
[400446305,1767562318930,-500.0,0.00043014,120]
[400446306,1767562318955,-224.0276162,0.00043014,120]
[400446307,1767562318980,-150.22191408,0.00043014,120]
[400446308,1767562319005,-500.0,0.00043014,120]
[400446309,1767562319031,-501.67472653,0.00043014,120]
[400446310,1767562319056,-500.0,0.00043014,120]
[400446311,1767562319081,-500.0,0.00043014,120]
[400446312,1767562319107,-500.0,0.00043014,120]
[400446313,1767562319132,-150.0,0.00043014,120]
[400446314,1767562319157,-450.0,0.00043014,120]
[400446315,1767562319183,-150.0,0.00043014,120]
[400446316,1767562319209,-150.0,0.00043014,120]
[400446317,1767562319235,-150.0,0.00043014,120]
[400446318,1767562319261,-150.0,0.00043014,120]
[400446319,1767562319288,-154.47519116,0.00043014,120]
[400446320,1767562319314,-150.0,0.00043014,120]
[400446321,1767562319340,-151.04141004,0.00043014,120]
[400446322,1767562319367,-500.0,0.00043014,120]
[400446323,1767562319393,-175.09591949,0.00043014,120]
[400446324,1767562319420,-500.0,0.00043014,120]
[400446325,1767562319448,-452.82209839,0.00043014,120]
[400446326,1767562319475,-150.0,0.00043014,120]
[400446327,1767562319501,-150.0,0.00043014,120]
[400446328,1767562319527,-150.0,0.00043014,120]
[400446329,1767562319554,-150.0,0.00043014,120]
[400446330,1767562319579,-151.2852368,0.00043014,120]
[400446331,1767562319606,-150.0,0.00043014,120]
[400446332,1767562319632,-150.0,0.00043014,120]
[400446333,1767562319658,-500.0,0.00043014,120]
[400446334,1767562319707,-150.77704486,0.00043014,120]
[400446335,1767562319732,-215.53778665,0.00043014,120]
[400446336,1767562319757,-500.0,0.00043014,120]
[400446337,1767562319781,-500.0,0.00043014,120]
[400446338,1767562319806,-500.0,0.00043014,120]
[400446339,1767562319831,-496.39550486,0.00043014,120]
[400446340,1767562319855,-150.22160004,0.00043014,120]
[400446341,1767562319880,-570.72313301,0.00043014,120]
[400446342,1767562319905,-150.0,0.00043014,120]
[400446343,1767562319929,-150.0,0.00043014,120]
[400446344,1767562319954,-207.17088019,0.00043014,120]
[400446345,1767562319979,-150.0,0.00043014,120]
[400446346,1767562320003,-500.0,0.00043014,120]
[400446347,1767562320028,-150.0,0.00043014,120]
[400446348,1767562320054,-500.0,0.00043014,120]
[400446349,1767562320080,-500.0,0.00043014,120]
[400446350,1767562320106,-500.0,0.00043014,120]
[400446351,1767562320133,-500.0,0.00043014,120]
[400446352,1767562320160,-500.0,0.00043014,120]
[400446353,1767562320187,-500.0,0.00043014,120]
[400446354,1767562320212,-500.0,0.00043014,120]
[400446355,1767562320238,-500.0,0.00043014,120]
[400446356,1767562320264,-500.0,0.00043014,120]
[400446357,1767562320291,-155.44613729,0.00043014,120]
[400446358,1767562320316,-500.0,0.00043014,120]
[400446359,1767562320342,-166.56105016,0.00043014,120]
[400446360,1767562320369,-500.0,0.00043014,120]
[400446361,1767562320399,-500.0,0.00043014,120]
[400446362,1767562320428,-500.0,0.00043014,120]
[400446363,1767562320455,-257.05641225,0.00043014,120]
[400446364,1767562320481,-500.0,0.00043014,120]
[400446365,1767562320508,-500.0,0.00043014,120]
[400446366,1767562320535,-500.0,0.00043014,120]
[400446367,1767562320563,-500.0,0.00043014,120]
[400446368,1767562320589,-150.0,0.00043014,120]
[400446369,1767562320616,-500.0,0.00043014,120]
[400446370,1767562320643,-201.41349019,0.00043014,120]
[400446371,1767562320669,-500.0,0.00043014,120]
[400446372,1767562320697,-500.0,0.00043014,120]
[400446373,1767562320724,-500.0,0.00043014,120]
[400446374,1767562320750,-500.0,0.00043014,120]
[400446375,1767562320775,-500.0,0.00043014,120]
[400446376,1767562320800,-500.0,0.00043014,120]
[400446377,1767562320826,-500.0,0.00043014,120]
[400446378,1767562320851,-500.0,0.00043014,120]
[400446379,1767562320879,-500.0,0.00043014,120]
[400446380,1767562320906,-500.0,0.00043014,120]
[400446381,1767562320933,-500.0,0.00043014,120]
[400446382,1767562320959,-500.0,0.00043014,120]
[400446383,1767562320984,-166.67024255,0.00043014,120]
[400446384,1767562321010,-500.0,0.00043014,120]
[400446385,1767562321036,-500.0,0.00043014,120]
[400446386,1767562321061,-500.0,0.00043014,120]
[400446387,1767562321087,-500.0,0.00043014,120]
[400446388,1767562321113,-500.0,0.00043014,120]
[400446389,1767562321139,-500.0,0.00043014,120]
[400446390,1767562321165,-460.46482405,0.00043014,120]
[400446391,1767562321191,-500.0,0.00043014,120]
[400446392,1767562321216,-500.0,0.00043014,120]
[400446393,1767562321240,-500.0,0.00043014,120]
[400446394,1767562321265,-2419.0,0.00043014,120]
[400446395,1767562321291,-500.0,0.00043014,120]
[400446396,1767562321317,-411.79245406,0.00043014,120]
[400446397,1767562321344,-2419.0,0.00043014,120]
[400446398,1767562321371,-2419.0,0.00043014,120]
[400446399,1767562321401,-500.0,0.00043014,120]
[400446400,1767562321428,-2419.0,0.00043014,120]
[400446401,1767562321455,-500.0,0.00043014,120]
[400446402,1767562321482,-2419.0,0.00043014,120]
[400446403,1767562321510,-500.0,0.00043014,120]
[400446404,1767562321538,-500.0,0.00043014,120]
[400446405,1767562321566,-2419.0,0.00043014,120]
[400446406,1767562321593,-500.0,0.00043014,120]
[400446407,1767562321621,-2419.0,0.00043014,120]
[400446408,1767562321648,-2419.0,0.00043014,120]
[400446409,1767562321676,-500.0,0.00043014,120]
[400446410,1767562321703,-2419.0,0.00043014,120]
[400446411,1767562321729,-500.0,0.00043014,120]
[400446412,1767562321755,-2419.0,0.00043014,120]
[400446413,1767562321781,-500.0,0.00043014,120]
[400446414,1767562321807,-2419.0,0.00043014,120]
[400446415,1767562321831,-500.0,0.00043014,120]
[400446416,1767562321857,-2419.0,0.00043014,120]
[400446417,1767562321884,-500.0,0.00043014,120]
[400446418,1767562321910,-2419.0,0.00043014,120]
[400446419,1767562321936,-2419.0,0.00043014,120]
[400446420,1767562321963,-500.0,0.00043014,120]
[400446421,1767562321990,-2419.0,0.00043014,120]
[400446422,1767562322017,-2419.0,0.00043014,120]
[400446423,1767562322043,-2419.0,0.00043014,120]
[400446424,1767562322069,-500.0,0.00043014,120]
[400446425,1767562322095,-2419.0,0.00043014,120]
[400446426,1767562322120,-500.0,0.00043014,120]
[400446427,1767562322145,-2419.0,0.00043014,120]
[400446428,1767562322170,-403.53410059,0.00043014,120]
[400446429,1767562322195,-2419.0,0.00043014,120]
[400446430,1767562322307,-2419.0,0.00043014,120]
[400446431,1767562322333,-2419.0,0.00043014,120]
[400446432,1767562322360,-2419.0,0.00043014,120]
[400446433,1767562322390,-2424.46807329,0.00043014,120]
[400446434,1767562322417,-150.0,0.00043014,120]
[400446435,1767562322445,-500.0,0.00043014,120]
[400446436,1767562322472,-174.91395132,0.00043014,120]
[400446437,1767562322498,-500.0,0.00043014,120]
[400446438,1767562322524,-500.0,0.00043014,120]
[400446439,1767562322550,-500.0,0.00043014,120]
[400446440,1767562322576,-500.0,0.00043014,120]
[400446441,1767562322603,-500.0,0.00043014,120]
[400446442,1767562322629,-500.0,0.00043014,120]
[400446443,1767562322658,-500.0,0.00043014,120]
[400446444,1767562322687,-500.0,0.00043014,120]
[400446445,1767562322713,-500.0,0.00043014,120]
[400446446,1767562322740,-500.0,0.00043014,120]
[400446447,1767562322765,-500.0,0.00043014,120]
[400446448,1767562322791,-500.0,0.00043014,120]
[400446449,1767562322816,-500.0,0.00043014,120]
[400446450,1767562322841,-500.0,0.00043014,120]
[400446451,1767562322867,-329.38745065,0.00043014,120]
[400446452,1767562322893,-500.0,0.00043014,120]
[400446453,1767562322918,-500.0,0.00043014,120]
[400446454,1767562322944,-500.0,0.00043014,120]
[400446455,1767562322970,-500.0,0.00043014,120]
[400446456,1767562322995,-500.0,0.00043014,120]
[400446457,1767562323020,-500.0,0.00043014,120]
[400446458,1767562323046,-500.0,0.00043014,120]
[400446459,1767562323071,-500.0,0.00043014,120]
[400446460,1767562323099,-500.0,0.00043014,120]
[400446461,1767562323126,-312.69037426,0.00043014,120]
[400446462,1767562323153,-396.01330983,0.00043014,120]
[400446463,1767562323180,-500.0,0.00043014,120]
[400446464,1767562323206,-500.0,0.00043014,120]
[400446465,1767562323231,-500.0,0.00043014,120]
[400446466,1767562323257,-500.0,0.00043014,120]
[400446467,1767562323282,-500.0,0.00043014,120]
[400446468,1767562323308,-500.0,0.00043014,120]
[400446469,1767562323333,-500.0,0.00043014,120]
[400446470,1767562323359,-500.0,0.00043014,120]
[400446471,1767562323387,-500.0,0.00043014,120]
[400446472,1767562323414,-500.0,0.00043014,120]
[400446473,1767562323442,-500.0,0.00043014,120]
[400446474,1767562323469,-500.0,0.00043014,120]
[400446475,1767562323496,-500.0,0.00043014,120]
[400446476,1767562323523,-500.0,0.00043014,120]
[400446477,1767562323550,-500.0,0.00043014,120]
[400446478,1767562323576,-500.0,0.00043014,120]
[400446479,1767562323603,-500.0,0.00043014,120]
[400446480,1767562323629,-500.0,0.00043014,120]
[400446481,1767562323655,-248.90551946,0.00043014,120]
[400446482,1767562323681,-500.0,0.00043014,120]
[400446483,1767562323707,-500.0,0.00043014,120]
[400446484,1767562323732,-304.16020057,0.00043014,120]
[400446485,1767562323760,-500.0,0.00043014,120]
[400446486,1767562323786,-500.0,0.00043014,120]
[400446487,1767562323811,-500.0,0.00043014,120]
[400446488,1767562323837,-500.0,0.00043014,120]
[400446489,1767562323863,-500.0,0.00043014,120]
[400446490,1767562323889,-500.0,0.00043014,120]
[400446491,1767562323916,-500.0,0.00043014,120]
[400446492,1767562323941,-500.0,0.00043014,120]
[400446493,1767562323967,-500.0,0.00043014,120]
[400446494,1767562323993,-500.0,0.00043014,120]
[400446495,1767562324019,-500.0,0.00043014,120]
[400446496,1767562324047,-500.0,0.00043014,120]
[400446497,1767562324074,-600.0,0.00043014,120]
[400446498,1767562324103,-500.0,0.00043014,120]
[400446499,1767562324131,-500.0,0.00043014,120]
[400446500,1767562324158,-500.0,0.00043014,120]
[400446501,1767562324184,-175.99677747,0.00043014,120]
[400446502,1767562324211,-500.0,0.00043014,120]
[400446503,1767562324238,-500.0,0.00043014,120]
[400446504,1767562324264,-500.0,0.00043014,120]
[400446505,1767562324290,-500.0,0.00043014,120]
[400446506,1767562324318,-500.0,0.00043014,120]
[400446507,1767562324346,-500.0,0.00043014,120]
[400446508,1767562324373,-500.0,0.00043014,120]
[400446509,1767562324403,-500.0,0.00043014,120]
[400446510,1767562324431,-500.0,0.00043014,120]
[400446511,1767562324646,-500.0,0.00043014,120]
[400446512,1767562324675,-500.0,0.00043014,120]
[400446513,1767562324703,-500.0,0.00043014,120]
[400446514,1767562324734,-200.0,0.00043014,120]
[400446515,1767562324762,-500.0,0.00043014,120]
[400446516,1767562324789,-500.0,0.00043014,120]
[400446517,1767562324816,-425.5037543,0.00043014,120]
[400446518,1767562324843,-153.0,0.000431,120]
[400446519,1767562324869,-618.39873764,0.000431,120]
[400446520,1767562324898,-2346.468825,0.000431,120]
[400446521,1767562324928,-502.0,0.000431,30]
[400446522,1767562324957,-500.0,0.00043111,60]
[400446523,1767562324985,-500.0,0.00043111,60]
[400446524,1767562325013,-500.0,0.00043111,60]
[400446525,1767562325042,-2500.0,0.00043157,120]
[400446526,1767562325069,-2500.0,0.00043157,120]
[400446527,1767562325096,-2500.0,0.00043157,120]
[400446528,1767562325120,-2500.0,0.00043157,120]
[400446529,1767562325146,-999.99999905,0.000432,60]
[400446530,1767562325172,-202.63447074,0.000432,120]
[400446531,1767562325198,-2491.79107926,0.0004327,30]
[400446532,1767562325228,-4275358.86773737,0.000433,120]
[400446536,1767562351942,-151.0,0.00038356,120]
[400446537,1767562351980,-151.0,0.00038356,120]
[400446538,1767562352011,-151.0,0.00038356,120]
[400446539,1767562352042,-151.0,0.00038356,120]
[400446540,1767562352071,-151.0,0.00038356,120]
[400446541,1767562352100,-151.0,0.00038356,120]
[400446542,1767562352130,-151.0,0.00038356,120]
[400446543,1767562352159,-151.0,0.00038356,120]
[400446544,1767562352189,-270.493476,0.00038356,120]
[400446545,1767562352237,-500.0,0.00041096,31]
[400446546,1767562352267,-500.0,0.00041096,31]
[400446547,1767562352295,-500.0,0.00041096,31]
[400446548,1767562352324,-500.0,0.00041096,31]
[400446549,1767562352357,-500.0,0.00041096,31]
[400446550,1767562352389,-500.0,0.00041096,31]
[400446551,1767562352429,-724641.13226263,0.000433,120]
[400446552,1767562352460,-151.319,0.000433,30]
[400446553,1767562352490,-150.0,0.000433,30]
[400446554,1767562352520,-150.0,0.000433,30]
[400446555,1767562352551,-153.0,0.000434,120]
[400446556,1767562352582,-200.0,0.000434,120]
[400446557,1767562352618,-33333.5,0.000435,120]
[400446558,1767562352649,-7937.93,0.000435,30]
[400446559,1767562352688,-291.52892546,0.000435,30]
[400446560,1767562352721,-2345.35,0.000435,120]
[400446561,1767562352757,-50000.0,0.00043547,40]
[400446562,1767562352794,-50000.0,0.00043547,41]
[400446563,1767562352829,-50000.0,0.00043547,42]
[400446564,1767562352863,-50000.0,0.00043547,43]
[400446565,1767562352894,-50000.0,0.00043547,44]
[400446566,1767562352924,-50000.0,0.00043547,45]
[400446567,1767562352955,-50000.0,0.00043547,46]
[400446568,1767562352985,-50000.0,0.00043547,47]
[400446569,1767562353016,-50000.0,0.00043547,48]
[400446570,1767562353046,-50000.0,0.00043547,49]
[400446571,1767562353107,-150.65924374,0.0004355,120]
[400446572,1767562353134,-500.0,0.00043562,30]
[400446573,1767562353160,-8169.60900209,0.000436,30]
[400446574,1767562353187,-5342.0,0.000436,30]
[400446575,1767562353216,-150.0,0.000436,120]
[400446576,1767562353244,-500.0,0.00043659,60]
[400446577,1767562353275,-1000.0,0.00043675,120]
[400446578,1767562353308,-23546.5711917,0.0004369,120]
[400446579,1767562353338,-5214.05757346,0.00043693,120]
[400446580,1767562353366,-540.0,0.00043698,30]
[400446581,1767562353401,-967.98664252,0.000437,120]
[400446582,1767562353431,-997.71,0.00043702,30]
[400446583,1767562353461,-169.43,0.00043702,30]
[400446584,1767562353508,-114826.38918723,0.00043705,120]
[400446585,1767562353538,-500.0,0.00043707,120]
[400446586,1767562353570,-500.0,0.00043707,120]
[400446587,1767562353599,-1000.0,0.00043709,120]
[400446588,1767562353629,-501.3003353,0.000438,30]
[400446589,1767562353657,-982.35149843,0.000438,30]
[400446590,1767562353686,-161.90254744,0.000438,120]
[400446591,1767562353719,-1522.09,0.000438,120]
[400446592,1767562353748,-158.59254853,0.00043835,120]
[400446593,1767562353778,-153.0,0.000439,120]
[400446594,1767562353808,-200.0,0.00043966,120]
[400446595,1767562353837,-4674.6292068,0.00043987,120]
[400446596,1767562353867,-503.38447045,0.00044,120]
[400446597,1767562353894,-5126.75052358,0.00044,120]
[400446598,1767562353922,-4467.49316802,0.00044,120]
[400446599,1767562353949,-150.0,0.00044,120]
[400446600,1767562353977,-554.379196,0.00044,57]
[400446601,1767562354004,-2008.238,0.000441,120]
[400446602,1767562354045,-2008.238,0.000441,120]
[400446603,1767562354075,-2008.24,0.000441,120]
[400446604,1767562354105,-153.0,0.000442,120]
[400446605,1767562354568,-500.0,0.00044207,60]
[400446606,1767562354596,-500.0,0.00044207,60]
[400446607,1767562354624,-500.0,0.00044207,60]
[400446608,1767562354651,-158.88378663,0.0004425,120]
[400446609,1767562354676,-212.48734821,0.00044297,30]
[400446610,1767562354703,-1191.55576094,0.000445,120]
[400446611,1767562354729,-20066.2373,0.000445,120]
[400446612,1767562354757,-153.0,0.000447,120]
[400446613,1767562354783,-368.81,0.00044701,120]
[400446614,1767562354809,-500.0,0.00044755,60]
[400446615,1767562354835,-442.45806739,0.0004489,120]
[400446616,1767562354860,-763.74461097,0.000449,30]
[400446617,1767562354886,-208.0,0.0004496,30]
[400446618,1767562354916,-1574.599442,0.00045,120]
[400446619,1767562354943,-442.05749672,0.00045,30]
[400446620,1767562354969,-3067.45753225,0.00045,120]
[400446621,1767562354996,-211.68037142,0.00045,120]
[400446622,1767562355023,-353.80953382,0.00045,30]
[400446623,1767562355050,-1129.41582257,0.00045,32]
[400446624,1767562355077,-267.28639255,0.00045,120]
[400446625,1767562355104,-5202.46438306,0.00045,90]
[400446626,1767562355131,-153.0,0.00045,120]
[400446627,1767562355161,-158.9,0.00045,85]
[400446628,1767562355187,-5000.0,0.00045,60]
[400446629,1767562355213,-2500.0,0.00045,30]
[400446630,1767562355239,-200.0,0.00045,120]
[400446631,1767562355264,-252.69233754,0.00045,120]
[400446632,1767562355290,-183.54391508,0.00045,60]
[400446633,1767562355316,-3484.29221386,0.00045,120]
[400446634,1767562355342,-150.0,0.00045,120]
[400446635,1767562355368,-394.38217549,0.00045,120]
[400446636,1767562355398,-1188.0,0.00045,120]
[400446637,1767562355424,-5113.0,0.00045,30]
[400446638,1767562355452,-164.81,0.00045,60]
[400446639,1767562355479,-500.0,0.00045,60]
[400446640,1767562355507,-1420.23,0.00045,30]
[400446641,1767562355533,-2500.0,0.00045155,120]
[400446642,1767562355560,-500.0,0.00045303,60]
[400446643,1767562355587,-513.95347464,0.00045303,60]
[400446644,1767562355613,-221.956215,0.00045466,120]
[400446645,1767562355641,-153.0,0.000455,120]
[400446646,1767562355669,-321.56357645,0.000457,120]
[400446647,1767562355696,-500.0,0.00045851,60]
[400446648,1767562355722,-153.0,0.000459,120]
[400446649,1767562355749,-308.80328023,0.00046,120]
[400446650,1767562355775,-490.93229582,0.00046,120]
[400446651,1767562355802,-1000.0,0.00046,30]
[400446652,1767562355828,-204.85215038,0.00046,30]
[400446653,1767562355854,-3274.09445231,0.00046,30]
[400446654,1767562355880,-797.40248165,0.00046,120]
[400446655,1767562355906,-187.53104195,0.00046,120]
[400446656,1767562355932,-606.13953103,0.00046,90]
[400446657,1767562355958,-687.72323341,0.00046,120]
[400446658,1767562355983,-150.0,0.00046,120]
[400446659,1767562356009,-220.0,0.00046011,120]
[400446660,1767562356036,-294.82555118,0.00046027,120]
[400446661,1767562356063,-153.0,0.000463,120]
[400446662,1767562356090,-500.0,0.00046399,60]
[400446663,1767562356117,-153.0,0.000467,120]
[400446664,1767562356143,-1368.66538035,0.000468,120]
[400446665,1767562356170,-2742.48559568,0.000469,120]
[400446666,1767562356196,-5000.0,0.000469,120]
[400446667,1767562356223,-500.0,0.00046947,60]
[400446668,1767562356248,-208.0,0.0004698,30]
[400446669,1767562356275,-616.8626085,0.00047,30]
[400446670,1767562356300,-298.88363177,0.00047,120]
[400446671,1767562356326,-150.0,0.00047,120]
[400446672,1767562356352,-153.0,0.000471,120]
[400446673,1767562356381,-1420.23,0.0004725,30]
[400446674,1767562356411,-2500.0,0.00047453,120]
[400446675,1767562356440,-538.93973617,0.00047495,60]
[400446676,1767562356469,-327.84407195,0.000475,120]
[400446677,1767562356496,-153.0,0.000476,120]
[400446678,1767562356523,-153.0,0.000479,120]
[400446679,1767562356551,-5000.0,0.000479,120]
[400446680,1767562356578,-3000.0,0.00048,120]
[400446681,1767562356604,-2043.13543577,0.00048,120]
[400446682,1767562356631,-4235.23778948,0.00048,120]
[400446683,1767562356657,-308.52985206,0.00048,120]
[400446684,1767562356683,-306.97327213,0.00048,120]
[400446685,1767562356708,-707.10184177,0.00048,120]
[400446686,1767562356734,-687.72323341,0.00048,120]
[400446687,1767562356760,-150.0,0.00048,120]
[400446688,1767562356784,-1000.0,0.00048,120]
[400446689,1767562356811,-500.0,0.00048043,60]
[400446690,1767562356836,-1894.16926657,0.000481,120]
[400446691,1767562356861,-1000.0,0.00048234,31]
[400446692,1767562356886,-2268.41750497,0.0004825,120]
[400446693,1767562356912,-153.0,0.000484,120]
[400446694,1767562356937,-375.76771932,0.000485,120]
[400446695,1767562356963,-150.0,0.0004851,30]
[400446696,1767562357128,-150.22564822,0.0004851,30]
[400446697,1767562357154,-150.0,0.0004851,30]
[400446698,1767562357180,-150.0,0.0004851,30]
[400446699,1767562357205,-150.0,0.0004851,30]
[400446700,1767562357230,-150.0,0.0004851,30]
[400446701,1767562357255,-150.53710519,0.0004851,30]
[400446702,1767562357281,-152.13354257,0.0004851,30]
[400446703,1767562357306,-150.0,0.0004851,30]
[400446704,1767562357332,-150.0,0.0004851,30]
[400446705,1767562357360,-150.0,0.0004851,30]
[400446706,1767562357386,-150.0,0.0004851,30]
[400446707,1767562357415,-150.43726518,0.0004851,30]
[400446708,1767562357444,-151.57765887,0.0004851,30]
[400446709,1767562357471,-150.0,0.0004851,30]
[400446710,1767562357497,-150.0,0.0004851,30]
[400446711,1767562357524,-150.0,0.00048571,30]
[400446712,1767562357551,-150.0,0.00048571,30]
[400446713,1767562357579,-150.0,0.00048577,30]
[400446714,1767562357606,-150.0,0.00048588,30]
[400446715,1767562357633,-150.0,0.00048597,30]
[400446716,1767562357662,-150.0,0.0004862,30]
[400446717,1767562357688,-150.0,0.00048633,30]
[400446718,1767562357716,-150.0,0.00048633,30]
[400446719,1767562357742,-150.0,0.00048645,30]
[400446720,1767562357769,-150.0,0.00048666,30]
[400446721,1767562357795,-150.0,0.00048684,30]
[400446722,1767562357823,-150.0,0.00048694,30]
[400446723,1767562357850,-150.0,0.00048694,30]
[400446724,1767562357876,-153.0,0.000487,120]
[400446725,1767562357901,-150.0,0.00048712,30]
[400446726,1767562357927,-150.0,0.0004873,30]
[400446727,1767562357952,-150.0,0.00048735,30]
[400446728,1767562357977,-150.0,0.00048744,30]
[400446729,1767562358003,-150.0,0.00048755,30]
[400446730,1767562358029,-150.0,0.00048755,30]
[400446731,1767562358055,-150.0,0.00048771,30]
[400446732,1767562358081,-150.0,0.0004878,30]
[400446733,1767562358107,-150.0,0.0004878,30]
[400446734,1767562358133,-3897.43388459,0.000488,120]
[400446735,1767562358162,-150.0,0.00048816,30]
[400446736,1767562358189,-150.0,0.00048816,30]
[400446737,1767562358215,-150.0,0.00048822,30]
[400446738,1767562358241,-150.0,0.0004884,30]
[400446739,1767562358267,-150.0,0.00048847,30]